Cogmind - Beta 9.3 @@@ ROGUE MODE // 2019.12.21 @ 18:11:44 // Winter2019/RPGLIKE Player: badjay Result: Destroyed by Y-45 Defender with Heavy Assault Rifle Performance ------------- Evolutions (2) 1000 Regions Visited (4) 800 Robots Destroyed (0) 0 Value Destroyed (0) 0 Prototype IDs (4) 80 Alien Tech Used (0) 0 Bonus (470) 470 TOTAL SCORE: 2350 Bonus ------- Pacifist 470 Cogmind --------- Core Integrity 0/600 Matter 300/300 Energy 100/100 System Corruption 0% Temperature Cool (9) Movement Core (50) Location -8/Materials Parts ------- > --- POWER (1) -------- (None) > --- PROPULSION (1) --- (None) > --- UTILITY (1) ------ (None) > --- WEAPON (1) ------- (None) > --- INVENTORY (0) ---- (None) Peak State ------------ > --- POWER ------------ Backup Power I > --- PROPULSION ------- Backup Propulsion I > --- UTILITY ---------- (None) > --- WEAPON ----------- Backup Laser I > --- INVENTORY -------- (None) [Rating: 3] Favorites ----------- Power Backup Power I Engine Backup Power I Propulsion Backup Propulsion I Hover Unit Backup Propulsion I Utility None Weapon Backup Laser I Energy Gun Backup Laser I Build | -11 -10 -9 -9 -8 ------- Run | Scr Mat Mat Sto Mat Slots Evolved . | . . . . . Power . | . . . . . Propulsion . | . . . . . Utility . | . . . . . Weapon . | . . . . . Parts Attached 1 | . . . 1 . Power 1 | . . . 1 . Engine 1 | . . . 1 . Core . | . . . . . Reactor . | . . . . . Propulsion . | . . . . . Treads . | . . . . . Leg . | . . . . . Wheel . | . . . . . Hover . | . . . . . Flight . | . . . . . Utility . | . . . . . Device . | . . . . . Storage . | . . . . . Processor . | . . . . . Hackware . | . . . . . Protection . | . . . . . Artifact . | . . . . . Weapon . | . . . . . Energy Gun . | . . . . . Energy Cannon . | . . . . . Ballistic Gun . | . . . . . Ballistic Cannon . | . . . . . Launcher . | . . . . . Special Weapon . | . . . . . Impact Weapon . | . . . . . Slashing Weapon . | . . . . . Piercing Weapon . | . . . . . Special Melee Weapon . | . . . . . Unidentified Prototypes . | . . . . . Parts Lost 2 | . . . 2 . Power 1 | . . . 1 . Propulsion . | . . . . . Utility . | . . . . . Weapon 1 | . . . 1 . Highest Loss Streak 2 | . . . 2 . Average Slot Usage (%) 35 | . . . 41 . Engine 13 | . . . 15 . Hover 10 | . . . 11 . Energy Gun 12 | . . . 14 . Naked Turns 106 | . 21 12 61 12 Heaviest Build 5 | . . . 5 . Greatest Support 6 | 3 3 3 6 3 Greatest Overweight (x) 1 | . . . 1 . Average Overweight (x) . | . . . . . Largest Inventory Capacity . | . . . . . Average Capacity . | . . . . . Most Carried . | . . . . . Average Carried . | . . . . . Final Capacity . | . . . . . Final Carried . | . . . . . Class Distribution -------------------- 91% | Hacker-Mutant 8% | Mutant Dominant Class ---------------- Mutant | -10/Materials Hacker-Mutant | -9/Materials Hacker-Mutant | -9/Storage Hacker-Mutant | -8/Materials Resources | -11 -10 -9 -9 -8 ----------- Run | Scr Mat Mat Sto Mat Matter Collected 200 | 200 . . . . Remotely . | . . . . . Salvage Created . | . . . . . Parts . | . . . . . Haulers Intercepted . | . . . . . Recyclers Shooed . | . . . . . Parts Field Recycled . | . . . . . Retrieved Matter . | . . . . . Parts Self-Destructed . | . . . . . Prevented . | . . . . . Kills | -11 -10 -9 -9 -8 ------- Run | Scr Mat Mat Sto Mat Combat Hostiles Destroyed . | . . . . . Classes Destroyed . | . . . . . Best Kill Streak . | . . . . . Combat Bots Only . | . . . . . Max Kills in Single Turn . | . . . . . Gunslinging . | . . . . . Exploded . | . . . . . Melee . | . . . . . Uniques/NPCs Destroyed . | . . . . . Combat | -11 -10 -9 -9 -8 -------- Run | Scr Mat Mat Sto Mat Damage Taken 655 | . 9 . 616 30 Core 603 | . 9 . 564 30 Absorbed by Shields . | . . . . . Redirected to Core 180 | . . . 180 . Core Remaining (%) 67 | 100 98 . 4 . Volleys Fired . | . . . . . Largest . | . . . . . Hottest . | . . . . . Shots Fired . | . . . . . Gun . | . . . . . Cannon . | . . . . . Launcher . | . . . . . Special . | . . . . . Kinetic . | . . . . . Thermal . | . . . . . Explosive . | . . . . . Electromagnetic . | . . . . . Robot Hit Streak . | . . . . . Robot Miss Streak . | . . . . . Penetration Max . | . . . . . Secondary Targets . | . . . . . Shots Hit Robots . | . . . . . Core Hits 2 | . . . 2 . Critical Hits . | . . . . . Critical Kills . | . . . . . Critical Parts Destroyed . | . . . . . Melee Attacks . | . . . . . Impact . | . . . . . Slashing . | . . . . . Piercing . | . . . . . Sneak Attacks . | . . . . . Combat Hostiles . | . . . . . Follow-up Attacks . | . . . . . Damage Inflicted 19 | . . . 19 . Guns . | . . . . . Cannons . | . . . . . Explosions . | . . . . . Melee . | . . . . . Ramming 19 | . . . 19 . Kinetic . | . . . . . Thermal . | . . . . . Explosive . | . . . . . Electromagnetic . | . . . . . Impact . | . . . . . Slashing . | . . . . . Piercing . | . . . . . Highest Corruption . | . . . . . Average Corruption . | . . . . . Corruption Purged . | . . . . . Overload Shots . | . . . . . Overflow Damage . | . . . . . Projectiles . | . . . . . Explosions . | . . . . . Melee . | . . . . . Knockbacks . | . . . . . Impact . | . . . . . Kinetic . | . . . . . Secondary . | . . . . . Self-Inflicted Damage 8 | . . . 8 . Shots . | . . . . . Rammed 7 | . . . 7 . Targets Rammed 7 | . . . 7 . Kicked . | . . . . . Crushed . | . . . . . Highest Temperature . | . . . . . Average Temperature . | . . . . . Received Heat Transfer 63 | . . . 54 9 Siege Activations . | . . . . . Robots Corrupted . | . . . . . Combat Hostiles . | . . . . . Parts Fried . | . . . . . Impact Corruptions . | . . . . . Robots Melted . | . . . . . Combat Hostiles . | . . . . . Parts Melted . | . . . . . Heat Transferred . | . . . . . Parts Sabotaged . | . . . . . Parts Stolen . | . . . . . Parts Stripped . | . . . . . Power Chain Reactions . | . . . . . Missiles Intercepted . | . . . . . Alert | -11 -10 -9 -9 -8 ------- Run | Scr Mat Mat Sto Mat Peak Influence 70 | . 7 2 70 39 Average Influence 24 | . 3 2 29 26 Maximum Alert Level . | . . . . . Low Security (%) 100 | 100 100 100 100 100 Level 1 . | . . . . . Level 2 . | . . . . . Level 3 . | . . . . . Level 4 . | . . . . . Level 5 . | . . . . . High Security . | . . . . . Max Security . | . . . . . Squads Dispatched . | . . . . . Investigation . | . . . . . Extermination . | . . . . . Reinforcement . | . . . . . Assault . | . . . . . Garrison . | . . . . . Intercept . | . . . . . Construction Impeded . | . . . . . Haulers Reinforced . | . . . . . Stealth | -11 -10 -9 -9 -8 --------- Run | Scr Mat Mat Sto Mat Distress Signals . | . . . . . Communications Jammed . | . . . . . Distress Signals . | . . . . . Times Spotted 16 | . 4 . 11 1 Peak Tracking Total 12 | . 5 . 12 5 Tactical Retreats . | . . . . . Traps | -11 -10 -9 -9 -8 ------- Run | Scr Mat Mat Sto Mat Traps Triggered 2 | . . . 2 . Indirectly . | . . . . . Trap Hack Attempts . | . . . . . Triggered . | . . . . . Disarmed . | . . . . . Reprogrammed . | . . . . . Reused . | . . . . . Traps Extracted . | . . . . . Installed . | . . . . . Triggered . | . . . . . Machines | -11 -10 -9 -9 -8 ---------- Run | Scr Mat Mat Sto Mat Machines Disabled . | . . . . . Max in Single Turn . | . . . . . Machines Sabotaged . | . . . . . Garrisons Compromised . | . . . . . Overloaded Fab Kills . | . . . . . Fab Network Shutdowns . | . . . . . Hacking | -11 -10 -9 -9 -8 --------- Run | Scr Mat Mat Sto Mat Machines Accessed 10 | . 1 . 8 1 Terminals 8 | . 1 . 6 1 Fabricators . | . . . . . Repair Stations 1 | . . . 1 . Recycling Units . | . . . . . Scanalyzers . | . . . . . Garrison Access 1 | . . . 1 . Total Hacks 59 | . 8 . 39 12 Successful 34 | . 5 . 22 7 Failed 25 | . 3 . 17 5 Catastrophic 3 | . . . 3 . Database Lockouts . | . . . . . Manual 40 | . 7 . 21 12 Terminals 57 | . 8 . 37 12 Fabricators . | . . . . . Repair Stations 1 | . . . 1 . Recycling Units . | . . . . . Scanalyzers . | . . . . . Garrison Access 1 | . . . 1 . Terminal Hacks 18 | . 2 . 12 4 Part Schematic 2 | . . . . 2 Robot Schematic 1 | . . . 1 . Prototype ID Bank 2 | . . . 2 . Open Door 1 | . . . 1 . Level Access Points 1 | . . . 1 . Branch Access Points 1 | . . . 1 . Emergency Access Points 1 | . . . 1 . Terminal Index 3 | . 1 . 1 1 Fabricator Index 1 | . . . . 1 Alert Level 1 | . . . 1 . Locate Traps 1 | . 1 . . . Patrol Status 1 | . . . 1 . Recall Reinforcements 1 | . . . 1 . Hauler Manifests 1 | . . . 1 . Fabricator Hacks . | . . . . . Repair Station Hacks 1 | . . . 1 . Refit 1 | . . . 1 . Recycling Unit Hacks . | . . . . . Scanalyzer . | . . . . . Garrison Access Hacks . | . . . . . Unauthorized Hacks 35 | . 7 . 21 7 Terminals 14 | . 3 . 8 3 Track 5 | . 1 . 3 1 Botnet 4 | . 1 . 2 1 Disrupt 2 | . . . 2 . Operators 3 | . 1 . 1 1 Fabricators . | . . . . . Repair Stations . | . . . . . Recycling Units . | . . . . . Scanalyzers . | . . . . . Garrison Access 1 | . . . 1 . Reprogram 1 | . . . 1 . Data Cores Recovered . | . . . . . Used . | . . . . . Hacking Detections 5 | . 1 . 3 1 Full Trace Events . | . . . . . Feedback Events . | . . . . . Feedback Blocked . | . . . . . Robot Schematics Acquired 1 | . . . 1 . Robots Built . | . . . . . Matter . | . . . . . Time . | . . . . . Total Robot Build Rating . | . . . . . Part Schematics Acquired 2 | . . . . 2 Parts Built . | . . . . . Matter . | . . . . . Time . | . . . . . Total Part Build Rating . | . . . . . Parts Repaired . | . . . . . Time . | . . . . . Parts Recycled . | . . . . . Recycled Matter . | . . . . . Retrieved Matter . | . . . . . Retrieved Components . | . . . . . Parts Scanalyzed . | . . . . . Part Schematics Acquired . | . . . . . Parts Damaged . | . . . . . Bothacking | -11 -10 -9 -9 -8 ------------ Run | Scr Mat Mat Sto Mat Used RIF Installer . | . . . . . Robots Hacked . | . . . . . Non-combat . | . . . . . Combat . | . . . . . Robot Hacks Applied . | . . . . . Relay Couplers Released . | . . . . . Robots Rewired . | . . . . . Allies Hacked . | . . . . . Hacks Repelled . | . . . . . Allies | -11 -10 -9 -9 -8 -------- Run | Scr Mat Mat Sto Mat Total Allies . | . . . . . Largest Group . | . . . . . Highest-Rated Group . | . . . . . Highest-Rated Ally . | . . . . . Total Orders . | . . . . . Ally Attacks . | . . . . . Total Damage . | . . . . . Kills . | . . . . . Allies Corrupted . | . . . . . Allies Melted . | . . . . . Intel | -11 -10 -9 -9 -8 ------- Run | Scr Mat Mat Sto Mat Robot Analysis Total . | . . . . . Derelict Logs Recovered . | . . . . . Drone Launches . | . . . . . Drone Recoveries . | . . . . . Exploration | -11 -10 -9 -9 -8 ------------- Run | Scr Mat Mat Sto Mat Turns Passed 261 | 15 21 12 201 12 Spaces Moved 332 | 31 41 23 215 22 Core 218 | 31 41 23 101 22 Treads . | . . . . . Legs . | . . . . . Wheels . | . . . . . Hover 114 | . . . 114 . Flight . | . . . . . Fastest Speed 50 | 50 50 50 50 50 Average Speed 60 | 50 50 50 66 50 Slowest Speed 100 | 50 50 50 100 50 Overloaded Moves . | . . . . . Propulsion Burnouts . | . . . . . Robots Hopped . | . . . . . Cave-ins Triggered . | . . . . . Exploration Rate (%) 14 | 3 15 4 44 4 Regions Visited 4 Branch Regions 1 Pre-discovered Areas . | . . . . . Known Exits Taken 1 | . . . 1 . Unknown Exits Taken 3 | 1 1 1 . . Scrap Searched . | . . . . . Spaces Dug . | . . . . . Terrain Destroyed . | . . . . . Melee . | . . . . . Projectile . | . . . . . AOE . | . . . . . Actions | -11 -10 -9 -9 -8 --------- Run | Scr Mat Mat Sto Mat Total 386 | 30 40 22 272 22 Wait 48 | . . . 48 . Move 328 | 30 40 22 214 22 Hop . | . . . . . Pick Up . | . . . . . Fast Attach 1 | . . . 1 . Attach . | . . . . . Detach . | . . . . . Swap . | . . . . . Drop 2 | . . . 2 . Fire . | . . . . . Melee . | . . . . . Ram 7 | . . . 7 . Kick . | . . . . . Crush . | . . . . . Escape Stasis . | . . . . . Rewire . | . . . . . Trap . | . . . . . Miscellaneous . | . . . . . Route ------- -11/Scrapyard -10/Materials -9/Materials -9/Storage (discovered 2 exits: *Mat / Rec) -8/Materials History --------- Turn | Location | Event 4 | -11/Scrapyard | Discovered new exit (range 15) 16 | -11/Scrapyard | Entered Materials 34 | -10/Materials | Discovered new exit (range 7) 37 | -10/Materials | Entered another Materials area 39 | -9/Materials | Reached level 2 44 | -9/Materials | Discovered new exit (range 5) 49 | -9/Materials | Entered Storage 123 | -9/Storage | Identified exit to Recycling 180 | -9/Storage | Identified exit to Materials 229 | -9/Storage | Core integrity fell below 50% 234 | -9/Storage | Core integrity fell below 20% 250 | -9/Storage | Entered Materials 251 | -8/Materials | Core integrity fell below 50% 251 | -8/Materials | Core integrity fell below 20% 252 | -8/Materials | Reached level 3 262 | -8/Materials | Destroyed by Y-45 Defender with Heavy Assault Rifle Last Messages --------------- Tracking enabled and active. >>Trojan(Operators) Trojan loaded successfully. Testing... Operator tracking enabled and active. >>Index(Terminals) Found 12 terminals. Downloaded coordinate data. >>Index(Fabricators) No fabricators found. >>Schematic(Adv. Sensor Array) Downloading schematic... Adv. Sensor Array Rating: 3 Schematic downloaded. >>Schematic(Adv. Signal Interpreter) Downloading schematic... Adv. Signal Interpreter Rating: 3 Schematic downloaded. Map ----- +----------------------------------------------------+ | ????????????????????????????????????????? | | ????????????????????????????????????????? | | ????????????????????????????????????????? | | ????????????????????????????????????????? | | ????????????????????????????????????????? | | ????????????????????????????????????????? | | ????????????????????????????????????????? | | ????????????????????????????????????????? | | ????????????????????????????????????????? | | ????????????????????????????????????????? | | ?????????????????wgg???!????????????????? | | ???????????????????? Y??######????????? | | ???????????????????b? ??# #????????? | | ????????????????????? ??# #?#####??? | | ?????????????????????# ?# #?# #??? | | ?????????????????????# ?#! #?# #??? | | ?????????????????????# ?# #?# #??? | | ?????????????????????# ?#" #?# #??? | | ?????????????????????# ?#T #?# #??? | | ?????????????????????# ?#" #?# #??? | | ????????????????????## ## ### ##?? | | ????????????????????# ###+### #?? | | ????????????????????# #?? | | ????????????????????+ #?? | | ????????????????????# #?? | | ????????????????????# @####### #?? | | ????????????????????## ##?????#######?? | | ?????????????????????# ???????????????? | | ?????????????????????# ????????????????? | | ?????????????????????# ?k??????????????? | | ?????????????????????# ?????????????????? | | ?????????????????????# ?????????????????? | | ?????o???????????????#??????????????????? | | ????????????????????????????????????????? | | ????????????????????????????????????????? | | ????????????????????????????????????????? | | ????????????????????????????????????????? | | ????????????????????????????????????????? | | ????????????????????????????????????????? | | ????????????????????????????????????????? | | ????????????????????????????????????????? | | ????????????????????????????????????????? | | ????????????????????????????????????????? | | ????????????????????????????????????????? | | ????????????????????????????????????????? | | ????????????????????????????????????????? | | ????????????????????????????????????????? | | ????????????????????????????????????????? | | ????????????????????????????????????????? | | ????????????????????????????????????????? | +----------------------------------------------------+ Best States ------------- Heat Dissipation 25 Energy Generation 10 Energy Capacity 250 Matter Stores 300 Matter Capacity 300 Sight Range 16 Terrain Scan Density 10 Evasion (%) 50 Offensive Hacking 15 Defensive Hacking 15 Item Schematics ----------------- Adv. Sensor Array | -8/Materials | Hacked Adv. Signal Interpreter | -8/Materials | Hacked Robot Schematics ------------------ L-31 Rogue | -9/Storage | Hacked Fabricated ------------ Nothing Alien Tech Used ----------------- None Achievements -------------- None Challenges ------------ None RPGLIKE | -11 -10 -9 -9 -8 --------- Run | Scr Mat Mat Sto Mat Levels Raised 2 | . . 1 . 1 XP Earned 7395 | 3000 100 1500 1200 1595 XP Spent 2700 | . 2700 . . . Upgrades 6 | . 6 . . . Hack Attack % 3 | . 3 . . . Hack Defense % 3 | . 3 . . . Protomatter Created . | . . . . . Protomatter Decayed . | . . . . . Game ------ Seed CouplerSmartbombPlating Manual? 0 Play Time 00:07:53 Cumulative 88.6 hours Start 2019.12.21 @ 18:03:21 End 2019.12.21 @ 18:11:44 Sessions 1 Manual Loads 0 Difficulty Rogue Special Mode Winter2019/RPGLIKE Game No. 120 Rogue 120 Adventurer 0 Explorer 0 Win Type - Total 8 Types 7/0/0/1/0/0/0 Lore% 48 Gallery% 60 Achievement% 48 Wizard Run 0 Options --------- ASCII 0 Keyboard 0 Movement Numpad Keybinds 0 Fullscreen 2 Font 18/SmallcapsGlow Map View 76x50 Tactical HUD 1 Map Filters NONE Filters NONE Steam 1 RUN: b23e6e2b-8924-4973-8084-862fe5b38858